[Event "Early-Titled-Tuesday-Blitz-January-30-2024"]
[Site "Chess.com"]
[Date "2024.01.30"]
[Round "8"]
[White "mac0504"]
[Black "ACollins05"]
[Result "1/2-1/2"]
[WhiteElo "2741"]
[BlackElo "2500"]
[TimeControl "180+1"]
[EndTime "9:30:06 PST"]
[Termination "Game drawn by repetition"]

1. c4 {[%clk 0:03:00.9]} 1... e6 {[%clk 0:02:40.5]} 2. Nc3 {[%clk 0:02:56.3]}
2... d5 {[%clk 0:02:40.3]} 3. e3 {[%clk 0:02:57]} 3... Nf6 {[%clk 0:02:39.9]} 4.
b3 {[%clk 0:02:57.5]} 4... Be7 {[%clk 0:02:38.3]} 5. Bb2 {[%clk 0:02:55.8]} 5...
c5 {[%clk 0:02:37.9]} 6. cxd5 {[%clk 0:02:51.7]} 6... exd5 {[%clk 0:02:38.2]} 7.
Bb5+ {[%clk 0:02:39.2]} 7... Nc6 {[%clk 0:02:36.5]} 8. Nf3 {[%clk 0:02:39.1]}
8... O-O {[%clk 0:02:36]} 9. O-O {[%clk 0:02:35.2]} 9... Bg4 {[%clk 0:02:28.2]}
10. Bxc6 {[%clk 0:02:33.4]} 10... bxc6 {[%clk 0:02:24.5]} 11. h3 {[%clk
0:02:34]} 11... Bh5 {[%clk 0:02:23.8]} 12. Ne2 {[%clk 0:02:33.1]} 12... a5
{[%clk 0:02:15.7]} 13. Nf4 {[%clk 0:02:24.2]} 13... Bxf3 {[%clk 0:02:13.2]} 14.
Qxf3 {[%clk 0:02:25.1]} 14... a4 {[%clk 0:02:13.6]} 15. bxa4 {[%clk 0:01:55.9]}
15... Rxa4 {[%clk 0:02:12.4]} 16. d3 {[%clk 0:01:52.5]} 16... Qa5 {[%clk
0:02:11.2]} 17. Nh5 {[%clk 0:01:30.8]} 17... Nxh5 {[%clk 0:02:05.6]} 18. Qxh5
{[%clk 0:01:31.7]} 18... Rxa2 {[%clk 0:02:00.4]} 19. Qg4 {[%clk 0:01:31.9]}
19... d4 {[%clk 0:01:53.1]} 20. exd4 {[%clk 0:01:14]} 20... Bf6 {[%clk
0:01:53.4]} 21. Qf5 {[%clk 0:00:33.5]} 21... Rb8 {[%clk 0:01:39.6]} 22. Bc3
{[%clk 0:00:30.6]} 22... Qa3 {[%clk 0:01:36.5]} 23. Rxa2 {[%clk 0:00:30.6]}
23... Qxa2 {[%clk 0:01:33.4]} 24. Qxc5 {[%clk 0:00:31.2]} 24... Qd5 {[%clk
0:01:28.7]} 25. Qxd5 {[%clk 0:00:29.9]} 25... cxd5 {[%clk 0:01:29.6]} 26. Ra1
{[%clk 0:00:26.6]} 26... h5 {[%clk 0:01:25.2]} 27. Kf1 {[%clk 0:00:23]} 27...
Rb3 {[%clk 0:01:24.9]} 28. Rc1 {[%clk 0:00:17.7]} 28... Ra3 {[%clk 0:01:15.8]}
29. Rc2 {[%clk 0:00:17.5]} 29... h4 {[%clk 0:01:15]} 30. Ke2 {[%clk 0:00:18]}
30... Rb3 {[%clk 0:01:11.9]} 31. Ke3 {[%clk 0:00:14.8]} 31... Rb1 {[%clk
0:01:11.7]} 32. Bd2 {[%clk 0:00:13.5]} 32... Rg1 {[%clk 0:01:11.2]} 33. Kf3
{[%clk 0:00:11.7]} 33... Rd1 {[%clk 0:01:09.9]} 34. Be3 {[%clk 0:00:06.7]} 34...
Rxd3 {[%clk 0:01:09.5]} 35. Rc8+ {[%clk 0:00:05.8]} 35... Kh7 {[%clk 0:01:09.1]}
36. Rc5 {[%clk 0:00:05.6]} 36... Kg6 {[%clk 0:00:46.3]} 37. Rxd5 {[%clk
0:00:06]} 37... Ra3 {[%clk 0:00:41.4]} 38. Kg4 {[%clk 0:00:03.9]} 38... Ra1
{[%clk 0:00:37.6]} 39. Bg5 {[%clk 0:00:02]} 39... Rg1 {[%clk 0:00:36]} 40. Bxf6
{[%clk 0:00:02.1]} 40... Kxf6 {[%clk 0:00:30.5]} 41. Kf3 {[%clk 0:00:01.6]}
41... Rd1 {[%clk 0:00:25.9]} 42. Rd6+ {[%clk 0:00:01.7]} 42... Ke7 {[%clk
0:00:25.2]} 43. Rd5 {[%clk 0:00:01.8]} 43... Kf6 {[%clk 0:00:25.6]} 44. Rd6+
{[%clk 0:00:01.9]} 44... Ke7 {[%clk 0:00:25.7]} 45. Rd5 {[%clk 0:00:01.6]} 45...
Kf6 {[%clk 0:00:25.8]} 1/2-1/2

[Event "Early-Titled-Tuesday-Blitz-January-30-2024"]
[Site "Chess.com"]
[Date "2024.01.30"]
[Round "8"]
[White "ideika"]
[Black "SmirnovTimofey2000"]
[Result "0-1"]
[WhiteElo "2136"]
[BlackElo "1948"]
[TimeControl "180+1"]
[EndTime "9:30:07 PST"]
[Termination "SmirnovTimofey2000 won by resignation"]

1. e4 {[%clk 0:03:00.9]} 1... e5 {[%clk 0:02:55.7]} 2. f4 {[%clk 0:03:00.3]}
2... exf4 {[%clk 0:02:55.7]} 3. Nf3 {[%clk 0:02:56.1]} 3... g5 {[%clk
0:02:55.3]} 4. Bc4 {[%clk 0:02:54.2]} 4... g4 {[%clk 0:02:55.6]} 5. O-O {[%clk
0:02:54.7]} 5... gxf3 {[%clk 0:02:55.5]} 6. Qxf3 {[%clk 0:02:55.6]} 6... Qf6
{[%clk 0:02:55.4]} 7. e5 {[%clk 0:02:54.7]} 7... Qxe5 {[%clk 0:02:55.6]} 8.
Bxf7+ {[%clk 0:02:52.5]} 8... Kxf7 {[%clk 0:02:55.5]} 9. d4 {[%clk 0:02:52.7]}
9... Qf5 {[%clk 0:02:53.5]} 10. Bxf4 {[%clk 0:02:47.7]} 10... Nf6 {[%clk
0:02:53.2]} 11. Qe3 {[%clk 0:02:30.4]} 11... c5 {[%clk 0:02:18.2]} 12. Be5
{[%clk 0:02:18.8]} 12... cxd4 {[%clk 0:01:56.8]} 13. Rxf5 {[%clk 0:02:00.4]}
13... dxe3 {[%clk 0:01:56.6]} 14. Rxf6+ {[%clk 0:02:00.7]} 14... Ke7 {[%clk
0:01:45.8]} 15. Rf3 {[%clk 0:01:57.3]} 15... Bh6 {[%clk 0:01:25.6]} 16. Bxh8
{[%clk 0:01:45.9]} 16... d5 {[%clk 0:01:05.3]} 17. Bd4 {[%clk 0:01:41.4]} 17...
Bg4 {[%clk 0:01:01.2]} 18. Rf1 {[%clk 0:01:32.4]} 18... e2 {[%clk 0:00:55.8]}
19. Re1 {[%clk 0:01:32.5]} 19... Bd2 {[%clk 0:00:55.2]} 20. Nc3 {[%clk
0:01:29.9]} 20... Bxe1 {[%clk 0:00:52.6]} 21. Rxe1 {[%clk 0:01:30.8]} 21... Nc6
{[%clk 0:00:50]} 22. Bc5+ {[%clk 0:01:20.1]} 22... Kd7 {[%clk 0:00:45.4]} 23.
Nxe2 {[%clk 0:01:19.6]} 23... Re8 {[%clk 0:00:41.8]} 24. Kf2 {[%clk 0:01:18]}
24... b6 {[%clk 0:00:30.1]} 25. Be3 {[%clk 0:01:04.6]} 25... Bxe2 {[%clk
0:00:16.3]} 26. Rxe2 {[%clk 0:01:04.6]} 26... d4 {[%clk 0:00:15.7]} 27. Bf4
{[%clk 0:01:01.8]} 27... Rf8 {[%clk 0:00:13.3]} 28. Kg3 {[%clk 0:00:59.3]} 28...
Rg8+ {[%clk 0:00:12.4]} 29. Kf3 {[%clk 0:00:59]} 29... d3 {[%clk 0:00:10.5]} 30.
cxd3 {[%clk 0:00:49.9]} 30... Nd4+ {[%clk 0:00:10.7]} 31. Kf2 {[%clk 0:00:41.9]}
31... Nxe2 {[%clk 0:00:11]} 32. Kxe2 {[%clk 0:00:42.8]} 32... Rxg2+ {[%clk
0:00:10.5]} 33. Kf3 {[%clk 0:00:36.7]} 33... Rxb2 {[%clk 0:00:10.6]} 34. a4
{[%clk 0:00:35.3]} 34... Ra2 {[%clk 0:00:10.2]} 35. a5 {[%clk 0:00:34.7]} 35...
Rxa5 {[%clk 0:00:09.8]} 36. Ke4 {[%clk 0:00:33]} 36... Ra4+ {[%clk 0:00:09]} 37.
d4 {[%clk 0:00:33.1]} 37... b5 {[%clk 0:00:08.1]} 38. Be5 {[%clk 0:00:33]} 38...
b4 {[%clk 0:00:07.6]} 39. Kd3 {[%clk 0:00:33.4]} 39... Ra5 {[%clk 0:00:07]} 40.
Kc4 {[%clk 0:00:31.7]} 40... Rxe5 {[%clk 0:00:05.6]} 41. dxe5 {[%clk 0:00:32.6]}
41... a5 {[%clk 0:00:05.6]} 42. Kb3 {[%clk 0:00:31.6]} 42... Ke6 {[%clk
0:00:05.9]} 43. h3 {[%clk 0:00:30.6]} 43... Kxe5 {[%clk 0:00:06.3]} 0-1

[Event "Early-Titled-Tuesday-Blitz-January-30-2024"]
[Site "Chess.com"]
[Date "2024.01.30"]
[Round "8"]
[White "EsmeraldasAnderson03"]
[Black "sergeikim"]
[Result "0-1"]
[WhiteElo "2408"]
[BlackElo "2584"]
[TimeControl "180+1"]
[EndTime "9:30:09 PST"]
[Termination "sergeikim won by resignation"]

1. d4 {[%clk 0:03:00.9]} 1... Nf6 {[%clk 0:02:56.7]} 2. c4 {[%clk 0:03:01.3]}
2... g6 {[%clk 0:02:57.1]} 3. Nc3 {[%clk 0:03:01.2]} 3... d6 {[%clk 0:02:57.6]}
4. e4 {[%clk 0:03:01.5]} 4... Bg7 {[%clk 0:02:58]} 5. Be2 {[%clk 0:03:02.3]}
5... O-O {[%clk 0:02:58.3]} 6. Be3 {[%clk 0:03:03.1]} 6... e5 {[%clk 0:02:58.5]}
7. d5 {[%clk 0:03:03.8]} 7... a5 {[%clk 0:02:58.7]} 8. g4 {[%clk 0:03:04.3]}
8... Na6 {[%clk 0:02:59]} 9. h4 {[%clk 0:03:04.4]} 9... Nc5 {[%clk 0:02:59.1]}
10. f3 {[%clk 0:03:05.1]} 10... Bd7 {[%clk 0:02:59.3]} 11. h5 {[%clk 0:03:05.4]}
11... c6 {[%clk 0:02:58.8]} 12. Qd2 {[%clk 0:03:05.7]} 12... cxd5 {[%clk
0:02:56.4]} 13. cxd5 {[%clk 0:03:06.6]} 13... a4 {[%clk 0:02:55]} 14. Bh6 {[%clk
0:03:05.2]} 14... Qe7 {[%clk 0:02:54.6]} 15. Nh3 {[%clk 0:02:59.4]} 15... Ne8
{[%clk 0:02:54]} 16. Nf2 {[%clk 0:02:51.3]} 16... Bxh6 {[%clk 0:02:50.7]} 17.
Qxh6 {[%clk 0:02:50.7]} 17... g5 {[%clk 0:02:51.2]} 18. Ncd1 {[%clk 0:02:38.1]}
18... f6 {[%clk 0:02:49.5]} 19. Ne3 {[%clk 0:02:37.6]} 19... Ng7 {[%clk
0:02:46.8]} 20. O-O {[%clk 0:02:36.7]} 20... b5 {[%clk 0:02:43]} 21. a3 {[%clk
0:02:36.1]} 21... Nb3 {[%clk 0:02:41.1]} 22. Rad1 {[%clk 0:02:35.3]} 22... Rfc8
{[%clk 0:02:36.7]} 23. Bd3 {[%clk 0:02:33.4]} 23... Nd4 {[%clk 0:02:30.8]} 24.
Nh1 {[%clk 0:02:31.7]} 24... Rc5 {[%clk 0:02:16.4]} 25. Ng3 {[%clk 0:02:31.2]}
25... Rac8 {[%clk 0:02:15.3]} 26. Rf2 {[%clk 0:02:31.8]} 26... Rc1 {[%clk
0:02:13.6]} 27. Rxc1 {[%clk 0:02:31.1]} 27... Rxc1+ {[%clk 0:02:13.3]} 28. Kg2
{[%clk 0:02:32]} 28... Qf8 {[%clk 0:02:06.5]} 29. Ne2 {[%clk 0:02:28.9]} 29...
Nxe2 {[%clk 0:02:03.1]} 30. Rxe2 {[%clk 0:02:29.8]} 30... Qd8 {[%clk 0:01:44.5]}
31. Rc2 {[%clk 0:02:28.7]} 31... Rxc2+ {[%clk 0:01:43.9]} 32. Bxc2 {[%clk
0:02:29.6]} 32... Ne8 {[%clk 0:01:42.7]} 33. Bd3 {[%clk 0:02:06.1]} 33... Qb6
{[%clk 0:01:42.1]} 34. Nc2 {[%clk 0:02:06.6]} 34... Qc5 {[%clk 0:01:35.9]} 35.
Kf1 {[%clk 0:01:01.1]} 35... Qa7 {[%clk 0:01:28.4]} 36. Kg2 {[%clk 0:00:59.7]}
36... Qb8 {[%clk 0:01:22.7]} 37. Kf1 {[%clk 0:00:59.1]} 37... Qc8 {[%clk
0:01:19]} 38. Kg2 {[%clk 0:00:56.9]} 38... Qb7 {[%clk 0:01:12.4]} 39. Kf1 {[%clk
0:00:54.2]} 39... b4 {[%clk 0:01:12.7]} 40. axb4 {[%clk 0:00:50.1]} 40... Bb5
{[%clk 0:01:12.7]} 41. Ke2 {[%clk 0:00:45.1]} 41... Qa6 {[%clk 0:01:10.7]} 42.
Bxb5 {[%clk 0:00:41.1]} 42... Qxb5+ {[%clk 0:01:10.8]} 43. Kd2 {[%clk
0:00:35.2]} 43... Qc4 {[%clk 0:01:07.3]} 44. Ne3 {[%clk 0:00:28]} 44... Qxb4+
{[%clk 0:01:06.9]} 45. Kd1 {[%clk 0:00:27.3]} 45... Qb3+ {[%clk 0:00:55]} 46.
Ke2 {[%clk 0:00:27]} 46... Qxb2+ {[%clk 0:00:55]} 47. Ke1 {[%clk 0:00:27.4]}
47... a3 {[%clk 0:00:50.9]} 48. Nf5 {[%clk 0:00:27.1]} 48... Qb4+ {[%clk
0:00:45.7]} 49. Kf2 {[%clk 0:00:22.8]} 49... Qb6+ {[%clk 0:00:45.2]} 50. Kg3
{[%clk 0:00:22.4]} 50... Qd8 {[%clk 0:00:40.3]} 0-1

[Event "Early-Titled-Tuesday-Blitz-January-30-2024"]
[Site "Chess.com"]
[Date "2024.01.30"]
[Round "8"]
[White "only_strong_moves"]
[Black "margarita_2703"]
[Result "1-0"]
[WhiteElo "2528"]
[BlackElo "2337"]
[TimeControl "180+1"]
[EndTime "9:30:09 PST"]
[Termination "only_strong_moves won by resignation"]

1. d4 {[%clk 0:03:00.9]} 1... d5 {[%clk 0:02:58.7]} 2. Nc3 {[%clk 0:03:01.8]}
2... e6 {[%clk 0:02:57.2]} 3. Bf4 {[%clk 0:02:46.9]} 3... c6 {[%clk 0:02:56]} 4.
e3 {[%clk 0:02:46.5]} 4... Bd6 {[%clk 0:02:54.8]} 5. Nf3 {[%clk 0:02:46.2]} 5...
f5 {[%clk 0:02:52.6]} 6. Ne5 {[%clk 0:02:44.4]} 6... Nf6 {[%clk 0:02:50.7]} 7.
h3 {[%clk 0:02:43.8]} 7... O-O {[%clk 0:02:49.4]} 8. Bd3 {[%clk 0:02:43.8]} 8...
Qe7 {[%clk 0:02:47.7]} 9. g4 {[%clk 0:02:43.2]} 9... g6 {[%clk 0:02:44.7]} 10.
Be2 {[%clk 0:02:37.4]} 10... Nbd7 {[%clk 0:02:42.4]} 11. g5 {[%clk 0:02:33.5]}
11... Ne4 {[%clk 0:02:39.9]} 12. Nxe4 {[%clk 0:02:32.8]} 12... fxe4 {[%clk
0:02:35.1]} 13. h4 {[%clk 0:02:32.8]} 13... Nxe5 {[%clk 0:02:33.9]} 14. dxe5
{[%clk 0:02:32.7]} 14... Bc7 {[%clk 0:02:31]} 15. h5 {[%clk 0:02:31.8]} 15...
Bd7 {[%clk 0:01:58.7]} 16. hxg6 {[%clk 0:02:24.5]} 16... hxg6 {[%clk 0:01:59.6]}
17. Rh6 {[%clk 0:02:24.4]} 17... Kg7 {[%clk 0:01:58.6]} 18. Bh5 {[%clk
0:02:19.5]} 18... Be8 {[%clk 0:01:51.6]} 19. Bg4 {[%clk 0:02:13.3]} 19... Bf7
{[%clk 0:01:51]} 20. Kd2 {[%clk 0:02:10.5]} 20... Rh8 {[%clk 0:01:49.9]} 21. Qh1
{[%clk 0:02:10.3]} 21... c5 {[%clk 0:01:42.6]} 22. c3 {[%clk 0:02:06.3]} 22...
Rad8 {[%clk 0:01:35.6]} 23. Qh4 {[%clk 0:02:04.1]} 23... Rdg8 {[%clk 0:01:28.2]}
24. Rh1 {[%clk 0:02:03.9]} 24... Qd8 {[%clk 0:01:25.7]} 25. Qh3 {[%clk
0:01:49.1]} 25... d4 {[%clk 0:01:21.7]} 26. exd4 {[%clk 0:01:38.9]} 26... cxd4
{[%clk 0:01:22.6]} 27. Kc1 {[%clk 0:01:31.1]} 27... dxc3 {[%clk 0:01:13.9]} 28.
Qxc3 {[%clk 0:01:30.1]} 28... Bb6 {[%clk 0:01:07.5]} 29. Kb1 {[%clk 0:01:24.6]}
29... Bxf2 {[%clk 0:01:01.6]} 30. Qh3 {[%clk 0:01:09.8]} 30... Qd3+ {[%clk
0:00:54.9]} 31. Qxd3 {[%clk 0:01:09]} 31... exd3 {[%clk 0:00:55.8]} 32. Rf1
{[%clk 0:01:03.4]} 32... Bc5 {[%clk 0:00:54.3]} 33. Bd2 {[%clk 0:01:03.6]} 33...
Be7 {[%clk 0:00:48.6]} 34. Rf3 {[%clk 0:00:56]} 34... Rd8 {[%clk 0:00:48]} 35.
b3 {[%clk 0:00:36.2]} 35... Bg8 {[%clk 0:00:45.3]} 36. Bh3 {[%clk 0:00:27.5]}
36... Rd5 {[%clk 0:00:25.8]} 37. Bf1 {[%clk 0:00:26.4]} 37... Rxh6 {[%clk
0:00:15.2]} 38. gxh6+ {[%clk 0:00:26.4]} 38... Kh7 {[%clk 0:00:15.2]} 39. Bxd3
{[%clk 0:00:21.7]} 39... Rxe5 {[%clk 0:00:15.4]} 40. Rg3 {[%clk 0:00:22.2]}
40... Bf7 {[%clk 0:00:14.9]} 41. Rf3 {[%clk 0:00:22.5]} 41... Rf5 {[%clk
0:00:10.2]} 42. Bxf5 {[%clk 0:00:22.3]} 42... exf5 {[%clk 0:00:11.1]} 43. Rd3
{[%clk 0:00:21.4]} 43... g5 {[%clk 0:00:08.2]} 44. Rd7 {[%clk 0:00:21.5]} 1-0

[Event "Early-Titled-Tuesday-Blitz-January-30-2024"]
[Site "Chess.com"]
[Date "2024.01.30"]
[Round "8"]
[White "InitiatingASC"]
[Black "Dinosaurio_1975"]
[Result "1-0"]
[WhiteElo "2432"]
[BlackElo "2575"]
[TimeControl "180+1"]
[EndTime "9:30:10 PST"]
[Termination "InitiatingASC won by resignation"]

1. d4 {[%clk 0:02:48.5]} 1... d5 {[%clk 0:02:59.5]} 2. c4 {[%clk 0:02:48.1]}
2... e6 {[%clk 0:02:59.5]} 3. Nc3 {[%clk 0:02:45.7]} 3... Nf6 {[%clk 0:02:59.2]}
4. Nf3 {[%clk 0:02:44.9]} 4... Bb4 {[%clk 0:02:59]} 5. Qa4+ {[%clk 0:02:39.4]}
5... Nc6 {[%clk 0:02:58.9]} 6. e3 {[%clk 0:02:36.3]} 6... O-O {[%clk 0:02:57.9]}
7. Bd2 {[%clk 0:02:33.8]} 7... a6 {[%clk 0:02:53]} 8. a3 {[%clk 0:02:31.7]} 8...
Be7 {[%clk 0:02:14.3]} 9. Qc2 {[%clk 0:02:25.4]} 9... dxc4 {[%clk 0:02:07.1]}
10. Bxc4 {[%clk 0:02:24.9]} 10... b5 {[%clk 0:02:07.7]} 11. Bd3 {[%clk
0:02:24.5]} 11... Na5 {[%clk 0:01:59.8]} 12. Ne4 {[%clk 0:02:19.8]} 12... Nc4
{[%clk 0:01:49.9]} 13. Nxf6+ {[%clk 0:02:10.7]} 13... Bxf6 {[%clk 0:01:48.7]}
14. Bxh7+ {[%clk 0:02:07.4]} 14... Kh8 {[%clk 0:01:48.2]} 15. Bd3 {[%clk
0:02:07]} 15... Nxd2 {[%clk 0:01:47.5]} 16. Nxd2 {[%clk 0:02:06.3]} 16... Bb7
{[%clk 0:01:44.8]} 17. O-O {[%clk 0:02:00.4]} 17... Qd5 {[%clk 0:01:32.4]} 18.
Be4 {[%clk 0:01:55.2]} 18... Qh5 {[%clk 0:01:24.3]} 19. Bxb7 {[%clk 0:01:54.1]}
19... Rad8 {[%clk 0:01:24.8]} 20. Qxc7 {[%clk 0:01:43.8]} 20... e5 {[%clk
0:01:23.4]} 21. Bf3 {[%clk 0:01:39.4]} 21... Qf5 {[%clk 0:01:13.7]} 22. Ne4
{[%clk 0:01:30.8]} 22... exd4 {[%clk 0:01:03]} 23. Nxf6 {[%clk 0:01:28.2]} 23...
Qxf6 {[%clk 0:01:03.9]} 24. exd4 {[%clk 0:01:25.5]} 24... Rxd4 {[%clk
0:00:58.6]} 25. b4 {[%clk 0:01:16.4]} 25... Rfd8 {[%clk 0:00:56.5]} 26. Rac1
{[%clk 0:01:13.6]} 26... Rd2 {[%clk 0:00:52.8]} 27. Rc6 {[%clk 0:01:13.1]} 27...
Qf5 {[%clk 0:00:47.1]} 28. Rxa6 {[%clk 0:01:00]} 28... Rc8 {[%clk 0:00:39.9]}
29. Ra8 {[%clk 0:00:57.4]} 29... Rxa8 {[%clk 0:00:38.5]} 30. Bxa8 {[%clk
0:00:57.3]} 30... Qd3 {[%clk 0:00:33.9]} 31. Qc8+ {[%clk 0:00:47.9]} 31... Kh7
{[%clk 0:00:32]} 32. Qh3+ {[%clk 0:00:46.6]} 32... Qxh3 {[%clk 0:00:30.9]} 33.
gxh3 {[%clk 0:00:47.5]} 33... Ra2 {[%clk 0:00:30]} 34. Be4+ {[%clk 0:00:45.2]}
34... Kh6 {[%clk 0:00:24.4]} 35. Rc1 {[%clk 0:00:44.1]} 35... Rxa3 {[%clk
0:00:23.8]} 36. Rc6+ {[%clk 0:00:44.1]} 36... g6 {[%clk 0:00:22.2]} 37. Rc5
{[%clk 0:00:43.8]} 37... Rxh3 {[%clk 0:00:18.7]} 38. Rxb5 {[%clk 0:00:43.4]}
38... Rb3 {[%clk 0:00:19.2]} 39. Bd5 {[%clk 0:00:43]} 39... Rb1+ {[%clk
0:00:15.6]} 40. Kg2 {[%clk 0:00:43.5]} 40... f5 {[%clk 0:00:16.1]} 41. Rb6
{[%clk 0:00:42.1]} 41... Kg5 {[%clk 0:00:15.6]} 42. Bf7 {[%clk 0:00:41.1]} 42...
f4 {[%clk 0:00:08]} 43. Bxg6 {[%clk 0:00:40.1]} 43... Rb2 {[%clk 0:00:05.3]} 44.
Be4 {[%clk 0:00:40.1]} 44... Kg4 {[%clk 0:00:04]} 45. b5 {[%clk 0:00:34.4]}
45... Rb4 {[%clk 0:00:03.7]} 46. Bf3+ {[%clk 0:00:34.6]} 46... Kf5 {[%clk
0:00:03.7]} 47. Rb8 {[%clk 0:00:34.6]} 47... Ke5 {[%clk 0:00:04.1]} 48. b6
{[%clk 0:00:35]} 48... Kd6 {[%clk 0:00:04.6]} 49. b7 {[%clk 0:00:35.6]} 49...
Kc7 {[%clk 0:00:03.8]} 50. Rh8 {[%clk 0:00:35.3]} 50... Rb5 {[%clk 0:00:02.9]}
51. Rc8+ {[%clk 0:00:34.9]} 51... Kd7 {[%clk 0:00:03.3]} 1-0

[Event "Early-Titled-Tuesday-Blitz-January-30-2024"]
[Site "Chess.com"]
[Date "2024.01.30"]
[Round "8"]
[White "Der_Balak_3Halak"]
[Black "AttilaTurzo"]
[Result "1-0"]
[WhiteElo "2353"]
[BlackElo "2477"]
[TimeControl "180+1"]
[EndTime "9:30:10 PST"]
[Termination "Der_Balak_3Halak won on time"]

1. e4 {[%clk 0:03:00.9]} 1... c5 {[%clk 0:02:58.8]} 2. Nf3 {[%clk 0:03:00.1]}
2... Nc6 {[%clk 0:02:58.7]} 3. Bb5 {[%clk 0:02:59.3]} 3... g6 {[%clk 0:02:58.5]}
4. O-O {[%clk 0:02:57.7]} 4... Bg7 {[%clk 0:02:58.4]} 5. c3 {[%clk 0:02:58.3]}
5... Nf6 {[%clk 0:02:56.7]} 6. Re1 {[%clk 0:02:57.5]} 6... a6 {[%clk 0:02:53]}
7. Bxc6 {[%clk 0:02:52.9]} 7... dxc6 {[%clk 0:02:51.4]} 8. d3 {[%clk 0:02:50.3]}
8... O-O {[%clk 0:02:49.9]} 9. Be3 {[%clk 0:02:50.7]} 9... Nd7 {[%clk
0:02:45.6]} 10. a4 {[%clk 0:02:43.8]} 10... b6 {[%clk 0:02:40.8]} 11. Qd2 {[%clk
0:02:39.2]} 11... e5 {[%clk 0:02:37]} 12. Bh6 {[%clk 0:02:36.7]} 12... Bxh6
{[%clk 0:02:28.8]} 13. Qxh6 {[%clk 0:02:37.6]} 13... f6 {[%clk 0:02:28.2]} 14.
Na3 {[%clk 0:02:25.9]} 14... b5 {[%clk 0:02:26.4]} 15. axb5 {[%clk 0:02:22.5]}
15... axb5 {[%clk 0:02:23.9]} 16. Nc2 {[%clk 0:02:21.1]} 16... Bb7 {[%clk
0:02:08.6]} 17. h4 {[%clk 0:02:05.9]} 17... Qe7 {[%clk 0:02:07.4]} 18. Qe3
{[%clk 0:01:58.4]} 18... Rfd8 {[%clk 0:01:58.6]} 19. h5 {[%clk 0:01:25.2]} 19...
Kg7 {[%clk 0:01:51.2]} 20. Nh4 {[%clk 0:01:21.1]} 20... f5 {[%clk 0:01:42.5]}
21. Qg3 {[%clk 0:01:10.7]} 21... f4 {[%clk 0:01:18]} 22. Qg4 {[%clk 0:00:56.1]}
22... Qf6 {[%clk 0:01:10.6]} 23. Rxa8 {[%clk 0:00:47.5]} 23... Bxa8 {[%clk
0:01:09.3]} 24. Ra1 {[%clk 0:00:44.2]} 24... Nf8 {[%clk 0:00:56.7]} 25. Ra7+
{[%clk 0:00:40.8]} 25... Kh8 {[%clk 0:00:44]} 26. hxg6 {[%clk 0:00:24.6]} 26...
hxg6 {[%clk 0:00:43.2]} 27. Qh3 {[%clk 0:00:23.1]} 27... Kg8 {[%clk 0:00:40.6]}
28. Ne1 {[%clk 0:00:15.2]} 28... c4 {[%clk 0:00:30.6]} 29. dxc4 {[%clk 0:00:12]}
29... bxc4 {[%clk 0:00:25.5]} 30. Nef3 {[%clk 0:00:12.2]} 30... c5 {[%clk
0:00:25]} 31. Nh2 {[%clk 0:00:10.2]} 31... Bxe4 {[%clk 0:00:24]} 32. Ng4 {[%clk
0:00:09.9]} 32... Qg5 {[%clk 0:00:20.7]} 33. Nf3 {[%clk 0:00:05.1]} 33... Rd1+
{[%clk 0:00:17.6]} 34. Kh2 {[%clk 0:00:04.5]} 34... Bxf3 {[%clk 0:00:15.8]} 35.
Nh6+ {[%clk 0:00:05]} 35... Kh8 {[%clk 0:00:01.1]} 36. Nf7+ {[%clk 0:00:05.1]}
1-0

[Event "Early-Titled-Tuesday-Blitz-January-30-2024"]
[Site "Chess.com"]
[Date "2024.01.30"]
[Round "8"]
[White "Mohamed-almado"]
[Black "NewYearGirl"]
[Result "1-0"]
[WhiteElo "2405"]
[BlackElo "2344"]
[TimeControl "180+1"]
[EndTime "9:30:10 PST"]
[Termination "Mohamed-almado won by checkmate"]

1. d4 {[%clk 0:03:00.9]} 1... Nf6 {[%clk 0:02:52.7]} 2. c4 {[%clk 0:03:00.4]}
2... c5 {[%clk 0:02:52.5]} 3. d5 {[%clk 0:03:00]} 3... b5 {[%clk 0:02:52.5]} 4.
cxb5 {[%clk 0:03:00.2]} 4... a6 {[%clk 0:02:52.8]} 5. bxa6 {[%clk 0:02:51.8]}
5... e6 {[%clk 0:02:52.4]} 6. Nc3 {[%clk 0:02:47.6]} 6... exd5 {[%clk
0:02:49.5]} 7. Nxd5 {[%clk 0:02:47.3]} 7... Be7 {[%clk 0:02:49.9]} 8. f3 {[%clk
0:02:25.5]} 8... O-O {[%clk 0:02:46.9]} 9. e4 {[%clk 0:02:20]} 9... Bxa6 {[%clk
0:02:37.3]} 10. Bxa6 {[%clk 0:02:18.9]} 10... Nxa6 {[%clk 0:02:38.2]} 11. Ne2
{[%clk 0:02:15.3]} 11... Nxd5 {[%clk 0:02:37.8]} 12. Qxd5 {[%clk 0:02:13.1]}
12... Nb4 {[%clk 0:02:37.6]} 13. Qc4 {[%clk 0:02:10.5]} 13... Bf6 {[%clk
0:02:28.2]} 14. O-O {[%clk 0:02:07.7]} 14... Qa5 {[%clk 0:02:12.6]} 15. Kh1
{[%clk 0:01:51.2]} 15... Rfe8 {[%clk 0:02:08.1]} 16. a3 {[%clk 0:01:44.9]} 16...
Nc6 {[%clk 0:01:51.4]} 17. Nc3 {[%clk 0:01:37.7]} 17... Bd4 {[%clk 0:01:47.7]}
18. Bf4 {[%clk 0:01:26.7]} 18... Re6 {[%clk 0:01:45.3]} 19. Rab1 {[%clk
0:01:15.3]} 19... Qd8 {[%clk 0:01:37.7]} 20. Nd5 {[%clk 0:01:14.5]} 20... Rg6
{[%clk 0:01:30.6]} 21. b4 {[%clk 0:00:38.7]} 21... Qh4 {[%clk 0:01:19.2]} 22.
bxc5 {[%clk 0:00:14.9]} 22... Kh8 {[%clk 0:00:47.4]} 23. Rbd1 {[%clk 0:00:09.5]}
23... Bf2 {[%clk 0:00:40.6]} 24. Qe2 {[%clk 0:00:09]} 24... Bxc5 {[%clk
0:00:38.5]} 25. Nc7 {[%clk 0:00:07.7]} 25... Qxf4 {[%clk 0:00:34.4]} 26. Nxa8
{[%clk 0:00:06.6]} 26... Rh6 {[%clk 0:00:34.9]} 27. g3 {[%clk 0:00:06.4]} 27...
Qxg3 {[%clk 0:00:31.6]} 28. Qg2 {[%clk 0:00:06.7]} 28... Qe5 {[%clk 0:00:29.5]}
29. Nc7 {[%clk 0:00:07]} 29... Qxc7 {[%clk 0:00:28.9]} 30. Qc2 {[%clk
0:00:06.2]} 30... d6 {[%clk 0:00:22.5]} 31. Rd2 {[%clk 0:00:06.7]} 31... Ne7
{[%clk 0:00:19.5]} 32. Rc1 {[%clk 0:00:06.8]} 32... Qb8 {[%clk 0:00:18.1]} 33.
a4 {[%clk 0:00:07.2]} 33... Rh3 {[%clk 0:00:17.5]} 34. a5 {[%clk 0:00:07.7]}
34... Qc8 {[%clk 0:00:18]} 35. Qc4 {[%clk 0:00:06.9]} 35... Qd8 {[%clk
0:00:16.3]} 36. Qxf7 {[%clk 0:00:07.1]} 36... Ng6 {[%clk 0:00:16.2]} 37. Rxc5
{[%clk 0:00:07.3]} 37... Qh4 {[%clk 0:00:14.9]} 38. Rc8+ {[%clk 0:00:07.2]}
38... Nf8 {[%clk 0:00:15.4]} 39. Qxf8# {[%clk 0:00:07.7]} 1-0